bitfinex/quotes_ETHUSD_20260226
["timestamp","ask_amount","ask_price","bid_price","bid_amount"]
[1772143508140,0.47808803,2033.4,2032.2,0.001]
[1772143508141,0.47808803,2032.4,2032.2,0.001]
[1772143508345,0.854,2032.5,2032.2,0.001]
[1772143508661,0.797,2032.7,2032.5,0.46648344]
[1772143508872,0.47808803,2032.6,2032.3,0.46648344]
[1772143509041,0.47808803,2032.6,2032.2,0.30595474]
[1772143509556,0.47808803,2032.6,2032.2,0.001]
[1772143509957,1.70963238,2032.5,2032.2,0.001]
[1772143510875,1.27662008,2032.7,2032.3,0.47041998]
[1772143511064,1.27662008,2032.7,2032.2,0.30595474]
[1772143511065,0.47962008,2033.0,2032.6,0.77537472]
[1772143512176,1.22977027,2032.9,2032.6,0.77537472]
[1772143513274,1.22977027,2032.9,2032.4,0.001]
[1772143513275,0.47962008,2032.8,2032.4,0.47141998]
[1772143513447,0.47962008,2032.8,2032.4,0.001]
[1772143514488,1.70951135,2032.7,2032.4,0.001]
[1772143515151,1.70951135,2032.7,2032.2,0.001]
[1772143515152,0.47962008,2032.6,2032.2,0.001]
[1772143515662,0.47962008,2032.6,2032.2,0.30595474]
[1772143518483,1.70963238,2032.5,2032.2,0.001]
[1772143522886,6.69247966,2032.8,2032.3,0.47041998]
[1772143522887,0.47962008,2032.7,2032.3,0.47041998]
[1772143523887,1.70957186,2032.6,2032.3,0.47041998]
[1772143524988,1.70957186,2032.6,2032.4,0.0011]
[1772143525288,0.001,2032.5,2032.4,0.0011]
[1772143528963,3.48246719,2032.8,2032.5,0.47041998]
[1772143530463,1.773,2032.8,2032.5,0.47041998]
[1772143530783,3.00283601,2032.8,2032.5,0.47041998]
[1772143533193,0.47962008,2033.1,2032.5,0.47041998]
[1772143534093,4.9183553,2033.5,2032.5,0.47041998]
[1772143534094,0.47962008,2033.7,2033.1,0.47041998]
[1772143534291,0.47962008,2033.7,2032.8,0.30495474]
[1772143534292,0.47962008,2033.7,2033.3,0.47041998]
[1772143534594,0.47962008,2033.7,2033.1,0.47041998]
[1772143535203,1.22934697,2033.6,2033.1,0.47041998]
[1772143535406,1.70896705,2033.6,2033.1,0.47041998]
[1772143537686,0.002,2033.5,2033.1,0.47041998]
[1772143538090,0.002,2033.5,2033.2,0.76437663]
[1772143541474,0.002,2033.5,2033.3,0.45156824]
[1772143541673,0.002,2033.7,2033.4,0.75652298]
[1772143541892,1.23129196,2033.7,2033.4,0.75652298]
[1772143542239,1.7117578,2033.7,2033.4,0.75652298]
[1772143543225,0.48046584,2033.6,2033.3,0.45156824]
[1772143543516,0.48046584,2033.4,2032.7,0.45256824]
[1772143546913,0.48046584,2033.2,2032.7,0.45256824]
[1772143549816,1.2296493,2033.1,2032.7,0.45256824]
[1772143550129,1.71011514,2033.1,2032.7,0.45256824]
[1772143552634,0.48046584,2033.0,2032.7,0.45256824]
[1772143554302,1.71020313,2033.0,2032.7,0.45256824]
[1772143561436,1.71020313,2033.0,2032.9,0.0011]
[1772143563113,1.71014144,2033.1,2032.9,0.0011]
[1772143564641,1.71014144,2033.1,2032.9,0.0011]
[1772143567812,1.2296756,2033.1,2032.9,0.0011]
[1772143568140,0.001,2033.3,2032.9,0.45266824]
[1772143570244,0.001,2033.3,2032.9,1.68243698]
[1772143570425,0.001,2033.3,2033.0,0.49810466]
[1772143573617,0.001,2033.3,2033.1,0.0011]
[1772143573823,0.001,2033.3,2033.1,0.49920466]
[1772143581356,1.22946788,2033.4,2033.2,0.49810466]
[1772143586362,1.22946788,2033.4,2033.3,0.0011]
[1772143590398,1.71811443,2033.5,2033.3,0.0011]
[1772143590600,1.2304579,2033.5,2033.3,0.49920466]
[1772143590872,0.001,2033.5,2033.3,0.0011]
[1772143591251,0.001,2033.5,2033.3,0.49920466]
[1772143607265,0.001,2033.5,2033.3,0.0011]
[1772143607466,0.45156435,2033.5,2033.3,0.0011]
[1772143609077,1.68099982,2033.5,2033.3,0.0011]
[1772143609977,1.23043547,2033.5,2033.3,0.0011]
[1772143611086,0.45056435,2033.4,2033.3,0.0011]
[1772143613302,1.68003223,2033.4,2033.3,0.0011]
[1772143617607,5.36922362,2033.5,2033.3,0.0011]
[1772143624210,0.45056435,2033.4,2033.1,0.48251345]
[1772143626512,0.001,2033.5,2033.4,0.48141345]
[1772143633986,0.001,2033.5,2033.2,0.48881972]
[1772143634700,0.001,2033.5,2033.3,0.0011]
[1772143634901,0.001,2033.5,2033.3,0.48991972]
[1772143646555,0.001,2033.5,2033.4,0.001]
[1772143660973,0.49971936,2033.4,2033.2,0.001]
[1772143661132,0.49971936,2033.1,2032.9,0.0011]
[1772143661331,0.49971936,2033.1,2032.8,0.0011]
[1772143663067,0.49971936,2032.9,2032.8,0.0011]
[1772143680671,0.49971936,2033.1,2032.8,0.0011]
[1772143680862,0.002,2033.3,2032.9,0.47526261]
[1772143681943,0.002,2033.3,2033.0,0.0011]
[1772143682144,0.002,2033.3,2033.0,0.47636261]
[1772143682344,0.001,2033.1,2033.0,0.47636261]
[1772143682840,0.001,2033.1,2033.0,0.0011]
[1772143683054,0.50071936,2033.1,2033.0,0.0011]
[1772143687670,0.001,2033.1,2033.0,0.0011]
[1772143689048,0.001,2033.1,2032.8,0.47636261]
[1772143689251,0.001,2033.1,2032.9,0.47526261]
[1772143694181,0.002,2032.9,2032.8,0.0011]
[1772143699490,0.46862471,2032.9,2032.8,0.0011]
[1772143703763,0.002,2032.9,2032.8,0.0011]
[1772143704792,0.001,2033.1,2032.9,0.48197009]
[1772143705793,0.001,2033.1,2032.8,0.48307009]
[1772143706092,0.001,2033.1,2033.0,0.0011]
[1772143706474,0.46762471,2033.1,2033.0,0.0011]
[1772143707501,1.69727401,2033.1,2033.0,0.0011]
[1772143711294,0.46662471,2033.0,2032.8,0.0011]
[1772143712377,1.22977027,2032.9,2032.8,0.0011]
[1772143713318,1.69638138,2033.0,2032.8,0.0011]
[1772143714902,0.46662471,2032.9,2032.8,0.0011]
[1772143715287,0.46662471,2033.0,2032.8,0.0011]
[1772143716809,1.69637284,2033.0,2032.8,0.0011]
[1772143717706,0.001,2033.1,2033.0,0.0011]
[1772143717883,0.001,2033.1,2033.0,0.46103398]
[1772143719408,0.45490948,2033.1,2033.0,0.0011]
[1772143719598,0.45490948,2033.1,2032.8,0.0011]
[1772143719981,0.45490948,2033.1,2032.8,0.47453287]
[1772143722318,0.001,2033.1,2032.8,0.47453287]
[1772143727923,0.001,2033.1,2032.9,0.47343287]
[1772143728422,1.231534,2033.3,2033.0,0.47343287]
[1772143729343,0.002,2033.3,2033.0,0.47343287]
[1772143729506,0.002,2033.3,2033.1,0.47343287]
[1772143731021,0.002,2033.3,2033.1,1.70307888]
[1772143731325,0.002,2033.3,2033.2,0.47343287]
[1772143733206,0.001,2033.5,2033.3,0.47343287]
[1772143735217,0.001,2033.5,2033.4,0.47343287]
[1772143736528,0.001,2033.5,2033.4,0.77848973]
[1772143745633,0.001,2033.5,2033.4,0.47343287]
[1772143746431,0.002,2033.7,2033.5,0.47343287]
[1772143746610,0.002,2033.8,2033.7,0.47343287]
[1772143752535,0.002,2033.8,2033.5,1.22939659]
[1772143752536,0.46679905,2033.7,2033.3,0.48699941]
[1772143752718,0.46679905,2033.7,2033.4,0.48599941]
[1772143753036,0.002,2033.8,2033.5,0.48599941]
[1772143753621,0.46879905,2033.8,2033.5,0.48599941]
[1772143753924,0.002,2033.8,2033.5,0.48599941]
[1772143754134,0.002,2033.8,2033.6,0.48699941]
[1772143754940,0.002,2033.9,2033.7,0.48599941]
[1772143757151,0.002,2034.1,2033.9,0.48599941]
[1772143766925,0.002,2034.1,2033.9,0.48699941]
[1772143769461,0.46879905,2034.1,2033.9,0.001]
[1772143770760,0.46879905,2034.1,2033.8,0.30505686]
[1772143770954,0.46679905,2034.0,2033.6,0.001]
[1772143771259,0.46679905,2034.0,2033.6,2.02139703]
[1772143776645,0.46679905,2034.0,2033.7,0.47865893]
[1772143777161,0.46679905,2034.0,2033.7,1.70790441]
[1772143778876,0.46679905,2034.0,2033.8,0.001]
[1772143779171,0.002,2034.1,2033.9,0.47865893]
[1772143779354,0.002,2034.1,2033.9,1.70782009]
[1772143779759,0.002,2034.0,2033.9,1.70782009]
[1772143780061,0.002,2034.0,2033.9,0.47865893]
[1772143781577,0.002,2034.0,2033.9,1.70782457]
[1772143782141,0.002,2034.1,2033.9,1.70782457]
[1772143782568,0.002,2034.1,2034.0,0.47335486]
[1772143782872,0.002,2034.3,2034.1,0.47335486]
[1772143788750,0.46053074,2034.2,2033.8,1.23017774]
[1772143789104,0.46053074,2034.2,2033.9,1.70251365]
[1772143789245,0.002,2034.3,2034.0,0.47335486]
[1772143790356,0.46253074,2034.3,2034.0,0.47335486]
[1772143790984,0.46253074,2034.3,2034.0,1.70244654]
[1772143791483,0.46253074,2034.3,2034.2,0.001]
[1772143793063,0.002,2034.3,2034.2,0.001]
[1772143793484,0.46253074,2034.3,2034.2,0.001]
[1772143798114,0.002,2034.4,2034.2,0.47435486]
[1772143798401,0.46053074,2034.5,2034.2,0.47435486]
[1772143801287,0.46053074,2034.5,2034.2,1.22998323]
[1772143802992,0.46053074,2034.5,2034.2,0.001]
[1772143803995,0.002,2034.3,2034.2,0.001]
[1772143805774,0.46253074,2034.3,2034.2,0.001]
[1772143810102,0.46253074,2034.3,2034.2,0.50090102]
[1772143810103,0.002,2034.3,2034.2,0.50090102]
[1772143810607,0.002,2034.3,2034.2,1.72988538]
[1772143810806,0.45473681,2034.5,2034.2,0.50090102]
[1772143812579,1.68354213,2034.5,2034.2,0.50090102]
[1772143815986,0.45273681,2034.4,2034.2,0.001]
[1772143817107,0.002,2034.3,2034.2,0.001]
[1772143818509,0.45473681,2034.3,2034.0,0.001]
[1772143821815,0.45273681,2034.2,2034.0,0.001]
[1772143823894,0.45273681,2034.1,2033.9,0.001]
[1772143827522,1.68178719,2034.1,2033.9,0.001]
[1772143827819,0.45273681,2034.0,2033.9,0.001]
[1772143829797,1.68184254,2034.0,2033.8,0.001]
[1772143830001,0.45273681,2034.0,2033.8,0.001]
[1772143836528,1.68184423,2034.0,2033.8,0.001]
[1772143837129,0.45273681,2034.0,2033.8,0.001]
[1772143838934,1.23109452,2034.1,2033.8,0.47321321]
[1772143838935,0.002,2034.1,2033.8,0.47321321]
[1772143839433,0.4815147,2034.1,2033.8,0.47321321]
[1772143841440,0.002,2034.1,2033.9,0.45495122]
[1772143841639,0.002,2034.3,2034.0,0.45495122]
[1772143842136,0.002,2034.3,2034.0,0.45595122]
[1772143843331,0.002,2034.3,2034.1,0.45495122]
[1772143849723,0.002,2034.3,2034.1,1.6839892]
[1772143849909,0.002,2034.3,2034.1,0.45495122]
[1772143852718,0.002,2034.3,2034.1,1.6839864]
[1772143855318,0.002,2034.3,2034.2,0.45495122]
[1772143857642,0.002,2034.3,2034.2,1.68393558]
[1772143861352,0.002,2034.6,2034.5,0.45495122]
[1772143861654,0.46165561,2034.8,2034.5,0.45495122]
[1772143861955,0.46165561,2034.9,2034.5,0.45495122]
[1772143862344,0.46165561,2035.2,2034.9,0.45495122]
[1772143864365,0.46165561,2035.2,2034.8,0.45495122]
[1772143865867,1.22838173,2035.2,2034.8,0.45495122]
[1772143866042,0.46165561,2035.1,2034.8,0.45495122]
[1772143866743,0.002,2034.9,2034.8,0.45495122]
[1772143867865,0.002,2034.9,2034.7,1.22865575]
[1772143868068,0.46165561,2035.2,2034.8,0.7597398]
[1772143869772,0.46165561,2035.2,2034.8,0.45495122]
[1772143869941,0.46165561,2035.2,2034.8,1.68354458]
[1772143870131,0.49445453,2035.1,2034.8,0.45495122]
[1772143870336,0.49445453,2035.1,2034.7,1.22865394]
[1772143872672,0.49445453,2035.1,2034.7,1.69534694]
[1772143874350,0.49445453,2035.0,2034.7,0.466693]
[1772143875236,0.49445453,2035.0,2034.6,0.466693]
[1772143876566,0.49445453,2035.0,2034.5,1.22874439]
[1772143877061,0.49445453,2035.0,2034.5,1.69543739]
[1772143878060,0.49445453,2034.9,2034.4,1.22885526]
[1772143878242,0.49445453,2034.9,2034.7,0.001]
[1772143878447,0.49445453,2034.9,2034.4,0.466693]
[1772143878630,0.49645453,2034.8,2034.4,1.69554464]
[1772143878962,0.49645453,2034.8,2034.5,0.001]
[1772143881337,0.49645453,2035.0,2034.6,0.77148158]
[1772143881647,0.002,2035.0,2034.7,0.466693]
[1772143883458,0.002,2035.0,2034.9,0.466693]
[1772143884562,0.49645453,2035.3,2034.8,1.69531497]
[1772143885170,0.49645453,2035.3,2034.9,0.466693]
[1772143885674,0.49645453,2035.3,2035.0,0.466693]
[1772143887444,0.002,2035.3,2035.0,0.466693]
[1772143887663,0.002,2035.3,2035.1,0.466693]
[1772143889492,0.002,2035.3,2035.2,0.466693]
[1772143893068,0.002,2035.3,2035.1,0.466693]
[1772143896896,0.45874709,2035.3,2035.0,0.49050237]
[1772143898497,0.45874709,2035.3,2034.8,1.72009708]
[1772143898997,1.68708789,2035.3,2034.9,0.49050237]
[1772143899299,0.45874709,2035.3,2034.9,0.49050237]
[1772143903202,0.45874709,2035.3,2035.0,0.001]
[1772143903384,0.002,2035.1,2035.0,0.001]
[1772143905012,0.002,2035.1,2035.0,0.49584307]
[1772143905306,0.002,2035.3,2035.1,0.49484307]
[1772143906079,0.45985871,2035.8,2035.3,0.49484307]
[1772143908510,0.45985871,2035.7,2035.3,1.72313155]
[1772143912211,0.45985871,2035.6,2035.3,0.49484307]
[1772143912392,0.45985871,2035.6,2035.3,1.72315624]
[1772143915916,0.45985871,2035.6,2035.5,0.001]
[1772143916307,0.002,2035.6,2035.5,0.001]
[1772143917610,0.002,2035.8,2035.5,0.49584307]
[1772143917823,0.46385871,2035.8,2035.5,0.49584307]
[1772143918194,1.69188408,2035.8,2035.5,0.49584307]
[1772143918385,1.69188408,2035.8,2035.5,0.001]
[1772143918591,0.45985871,2035.7,2035.5,0.001]
[1772143921913,0.46185871,2035.7,2035.5,0.001]
[1772143922119,0.45985871,2035.6,2035.5,0.001]
[1772143923594,0.46185871,2035.7,2035.5,0.001]
[1772143930106,0.45985871,2035.7,2035.5,0.001]
[1772143930831,0.46185871,2035.7,2035.5,0.001]
[1772143933936,0.46385871,2035.7,2035.5,0.001]
[1772143936240,0.004,2035.7,2035.5,0.001]
[1772143936420,0.46096086,2035.7,2035.5,0.001]
[1772143937334,1.68907144,2035.7,2035.5,0.001]
[1772143937515,1.23211058,2035.7,2035.5,0.001]
[1772143937839,0.46096086,2035.7,2035.5,0.001]
[1772143938945,1.68904183,2035.7,2035.5,0.001]
[1772143939113,0.46096086,2035.7,2035.5,0.001]
[1772143943450,0.45696086,2035.6,2035.5,0.001]
[1772143945617,1.68509998,2035.6,2035.3,0.49393286]
[1772143945936,0.002,2035.5,2035.3,0.001]
[1772143946135,0.45896086,2035.5,2035.3,0.001]
[1772143946439,1.68704895,2035.7,2035.3,0.49393286]
[1772143946642,0.002,2035.5,2035.3,0.49393286]
[1772143949049,0.45696086,2035.5,2035.3,0.001]
[1772143949421,0.002,2035.7,2035.4,0.49293286]
[1772143949738,0.002,2035.6,2035.4,0.49293286]
[1772143949943,0.002,2035.7,2035.4,0.49293286]
[1772143951948,0.45896086,2035.7,2035.4,0.49293286]
[1772143954756,0.002,2035.6,2035.4,0.49293286]
[1772143957253,0.002,2035.5,2035.4,0.49293286]
[1772143957645,0.002,2035.5,2035.4,0.49393286]
[1772143959659,0.004,2035.5,2035.4,0.49393286]
[1772143960058,0.002,2035.5,2035.4,0.49393286]
[1772143964668,0.002,2035.8,2035.7,0.46646698]
[1772143965350,1.22769358,2036.4,2035.8,0.46646698]
[1772143965552,1.70081194,2036.4,2035.8,0.46646698]
[1772143965752,0.002,2036.3,2035.8,0.46646698]
[1772143966150,0.002,2036.3,2035.9,0.46646698]
[1772143966386,1.69860805,2036.7,2036.1,0.46646698]
[1772143966674,1.69860805,2036.7,2036.2,0.46646698]
[1772143969948,0.47111836,2036.6,2036.2,0.46646698]
[1772143970970,0.47111836,2036.6,2035.9,1.69438534]
[1772143970971,0.47111836,2036.4,2035.9,1.69438534]
[1772143971275,0.47311836,2036.4,2036.0,0.46646698]
[1772143971777,0.47311836,2036.4,2035.9,1.22791836]
[1772143972078,0.47311836,2036.3,2035.7,0.46646698]
[1772143972254,0.002,2036.3,2035.9,0.46646698]
[1772143973254,0.002,2036.3,2036.0,0.46646698]
[1772143973746,0.002,2036.4,2036.1,0.46646698]
[1772143973976,0.004,2036.4,2036.1,0.46646698]
[1772143975557,0.002,2036.4,2036.1,0.46646698]
[1772143975756,0.002,2036.4,2036.1,1.69427903]
[1772143978982,0.004,2036.4,2036.1,1.69427903]
[1772143980089,0.002,2036.3,2036.2,0.30419687]
[1772143980265,0.002,2036.6,2036.3,0.46646698]
[1772143980455,0.47111836,2037.0,2036.5,0.46646698]
[1772143980661,0.47111836,2037.0,2036.4,3.0419687]
[1772143980662,0.47111836,2037.0,2036.7,0.30419687]
[1772143980857,0.47111836,2037.1,2036.7,0.77266385]
[1772143981695,0.47111836,2037.1,2036.7,0.002]
[1772143982073,0.47111836,2036.9,2036.7,0.002]
[1772143982665,0.47111836,2036.8,2036.2,0.46646698]
[1772143982970,0.47111836,2036.8,2036.3,0.46646698]
[1772143983391,0.47111836,2036.8,2036.3,0.77066385]
[1772143984173,0.47111836,2036.6,2036.1,1.99845155]
[1772143984369,0.47111836,2036.6,2036.2,0.002]
[1772143984568,0.47111836,2036.6,2036.2,0.46846698]
[1772143986292,1.22759636,2036.5,2036.2,0.002]
[1772143986478,0.47111836,2036.4,2036.2,0.002]
[1772143986880,0.47111836,2036.3,2036.0,0.001]
[1772143987081,0.47111836,2036.3,2036.1,0.002]
[1772143987275,0.47111836,2036.3,2036.0,0.003]
[1772143989293,0.47111836,2036.2,2036.0,0.003]
[1772143989672,0.17181301,2036.3,2036.0,0.003]
[1772143989996,0.17101301,2036.3,2036.0,0.001]
[1772143990596,0.17101301,2036.2,2036.0,0.001]
[1772143990999,0.17021301,2036.2,2036.0,0.001]
[1772143991897,0.47111838,2036.3,2036.2,0.45794965]
[1772143992272,0.47111838,2036.3,2036.1,0.45794965]
[1772143992473,0.47111838,2036.3,2036.1,0.45994965]
[1772143993575,0.47031838,2036.3,2036.1,0.45994965]
[1772143993776,0.17101301,2036.2,2036.0,0.001]
[1772143994672,0.17101301,2036.2,2036.0,0.0002]
[1772143995472,0.47031838,2036.1,2036.0,0.0002]
[1772143995907,0.46951838,2036.1,2036.0,0.0002]
[1772143997191,0.46951838,2036.1,2035.9,0.45794965]
[1772143997192,0.46951838,2036.1,2035.9,0.45734965]
[1772143999008,0.46951838,2036.1,2036.0,0.001]
[1772143999305,0.46852074,2036.5,2036.1,0.45794965]
[1772144000506,1.69616279,2036.5,2036.1,0.45794965]
[1772144002621,0.46852074,2036.5,2036.1,0.45794965]
[1772144002916,1.843,2036.7,2036.2,0.45794965]
[1772144002917,1.69605918,2036.6,2036.2,0.45794965]
[1772144003086,0.46852074,2036.6,2036.2,0.45794965]
[1772144004287,2.31152074,2036.7,2036.2,0.45794965]
[1772144004899,0.47052074,2036.9,2036.5,0.45794965]
[1772144005113,1.69788227,2036.9,2036.5,0.45794965]
[1772144005494,0.46852074,2036.8,2036.5,0.45794965]
[1772144009721,0.46852074,2036.8,2036.5,1.68552507]
[1772144010018,0.46852074,2036.8,2036.5,0.45794965]
[1772144010727,1.6959413,2036.8,2036.5,0.45794965]
[1772144010923,0.46852074,2036.7,2036.3,0.45794965]
[1772144011231,1.69789173,2036.9,2036.4,0.45794965]
[1772144011522,0.46852074,2036.8,2036.4,0.45794965]
[1772144013428,1.69595032,2036.8,2036.4,0.45794965]
[1772144017833,0.46911943,2036.7,2036.2,0.001]
[1772144018131,0.46911943,2036.7,2036.3,0.46691617]
[1772144019916,1.69660551,2036.7,2036.3,0.46611617]
[1772144020114,1.69580551,2036.7,2036.4,0.46194502]
[1772144020335,1.22743757,2036.8,2036.4,0.46194502]
[1772144021001,1.72648484,2036.8,2036.4,0.46194502]
[1772144025207,0.002,2036.9,2036.5,0.46194502]
[1772144025838,0.49904727,2036.8,2036.2,1.22873681]
[1772144026136,0.49904727,2036.8,2036.3,0.46194502]
[1772144026137,0.49904727,2036.7,2036.3,0.46194502]
[1772144027539,0.49904727,2036.5,2036.2,0.001]
[1772144027714,0.30419687,2036.6,2036.2,0.001]
[1772144027715,0.49904727,2036.3,2036.2,0.001]
[1772144028956,0.49904727,2036.3,2036.0,0.001]
[1772144029243,0.49904727,2036.1,2035.8,0.001]
[1772144029809,0.49904727,2035.9,2035.8,0.001]
[1772144032813,0.49904727,2036.2,2035.8,0.46294502]
[1772144033730,0.49904727,2036.1,2035.8,0.001]
[1772144037049,1.72688856,2036.1,2035.8,0.001]
[1772144037219,0.49904727,2036.1,2035.8,0.001]
[1772144037543,0.49904727,2036.1,2035.8,0.46294502]
[1772144039047,6.75786934,2036.3,2035.9,0.46194502]
[1772144039048,3.57378741,2036.3,2035.9,0.46194502]
[1772144039553,0.49904727,2036.2,2035.9,0.46194502]
[1772144040831,0.49904727,2036.2,2035.8,0.46294502]
[1772144041355,0.49904727,2036.1,2036.0,0.001]
[1772144044972,0.49904727,2035.5,2035.3,0.001]
[1772144047770,0.49904727,2035.4,2035.3,0.001]
[1772144050282,1.72650707,2035.4,2035.3,0.0002]
[1772144051468,1.72650707,2035.4,2035.1,0.46898106]
[1772144051775,1.72650707,2035.4,2035.1,0.46818106]
[1772144055185,0.49824727,2035.4,2035.1,0.46818106]
[1772144055375,1.2282455,2035.5,2035.1,0.46818106]
[1772144056997,1.70770383,2035.5,2035.1,0.46818106]
[1772144057199,1.70770383,2035.5,2035.3,0.001]
[1772144059515,1.2282455,2035.5,2035.3,0.001]
[1772144059712,0.47945833,2035.5,2035.1,0.0002]
[1772144059880,2.79502419,2035.4,2035.1,0.0002]
[1772144061915,1.70777847,2035.3,2035.1,0.0002]
[1772144062217,0.47945833,2035.1,2034.8,0.001]
[1772144062509,0.47945833,2035.0,2034.8,0.001]
[1772144066504,1.22846786,2035.1,2034.8,0.46898106]
[1772144066874,1.70792619,2035.1,2034.8,0.46898106]
[1772144067078,1.70792619,2035.1,2034.8,0.001]
[1772144069603,0.47945833,2035.0,2034.8,0.001]
[1772144074686,1.70795974,2035.0,2034.8,0.001]
[1772144075309,0.47945833,2035.0,2034.8,0.0002]
[1772144076087,1.70796577,2035.0,2034.8,0.0002]
[1772144076607,0.47945833,2035.0,2034.8,0.0002]
[1772144079317,1.22848859,2035.1,2034.8,0.4881661]
[1772144079616,1.68383577,2035.1,2034.8,0.4881661]
[1772144081818,1.68223577,2035.1,2034.8,0.4881661]
[1772144082115,1.68223577,2035.1,2034.8,0.4873661]
[1772144083410,1.68223577,2035.1,2035.0,0.001]
[1772144088822,5.3707484,2035.3,2035.0,0.001]
[1772144088996,1.2283805,2035.2,2035.0,0.46396479]
[1772144090527,5.3707484,2035.3,2035.0,0.46396479]
[1772144090528,1.68571384,2035.3,2035.0,0.46396479]
[1772144091297,1.68571384,2035.3,2034.9,0.43012276]
[1772144093226,0.45534718,2035.2,2034.9,0.43012276]
[1772144095547,1.22844086,2035.1,2035.0,0.001]
[1772144095838,1.68378804,2035.1,2035.0,0.001]
[1772144096044,1.68378804,2035.1,2034.8,0.43112276]
[1772144096537,0.45534718,2035.0,2034.8,0.001]
[1772144099138,1.68386955,2035.0,2034.8,0.001]
[1772144100945,1.22852237,2035.0,2034.8,0.43112276]
[1772144101858,1.68382486,2035.1,2034.8,0.43112276]
[1772144102155,1.68378908,2035.1,2034.8,0.43112276]
[1772144104562,0.45534718,2035.1,2034.8,0.43112276]
[1772144105765,1.68379339,2035.1,2034.8,0.43112276]
[1772144106859,1.22844621,2035.1,2034.8,0.43112276]
[1772144107039,0.002,2035.2,2034.9,0.43012276]
[1772144107441,6.80092914,2035.5,2035.3,0.42812276]
[1772144107442,1.888,2035.5,2035.3,0.42812276]
[1772144107647,3.11620507,2035.5,2035.3,0.42812276]
[1772144107966,3.11620507,2035.5,2035.2,0.42812276]
[1772144108155,0.002,2035.4,2035.2,0.42812276]
[1772144112068,0.0012,2035.4,2035.2,0.42812276]
[1772144112366,0.0004,2035.4,2035.2,0.42812276]
[1772144120159,0.5004,2035.4,2035.0,0.001]
[1772144120565,0.0004,2035.4,2035.0,0.001]
[1772144125187,0.002,2035.7,2035.2,0.30469759]
[1772144125388,1.23008815,2035.7,2035.2,0.30469759]
[1772144125680,1.73008815,2035.7,2035.0,0.30569759]
[1772144129151,0.5,2035.6,2035.0,0.001]
[1772144129478,0.5,2035.5,2035.0,0.001]
[1772144130489,0.30469759,2035.4,2035.0,0.001]
[1772144130694,0.5,2035.3,2035.0,0.001]
[1772144131805,1.72832014,2035.3,2035.2,0.001]
[1772144138707,3.12330828,2035.4,2035.2,0.001]
[1772144142418,3.12330828,2035.4,2035.2,0.0002]
[1772144142719,3.12250828,2035.4,2035.2,0.0002]
[1772144144324,3.62250828,2035.4,2035.2,0.0002]
[1772144145287,0.002,2035.3,2035.2,0.0002]
[1772144154913,0.5,2035.2,2034.8,0.001]
[1772144155114,0.80419759,2034.9,2034.6,0.001]
[1772144156013,0.4995,2034.8,2034.5,0.001]
[1772144156422,0.4995,2034.8,2034.5,0.002]
[1772144156718,1.72816863,2034.8,2034.5,0.002]
[1772144160534,1.72816863,2034.8,2034.5,0.001]
[1772144160836,0.4995,2034.7,2034.5,0.001]
[1772144162033,0.4995,2034.6,2034.5,0.001]
[1772144162920,1.72823859,2034.7,2034.5,0.001]
[1772144163941,0.4995,2034.6,2034.3,0.001]
[1772144164122,1.72830314,2034.5,2034.3,0.001]
[1772144165636,1.72830314,2034.5,2034.0,0.001]
[1772144165637,0.4995,2034.4,2034.0,0.001]
[1772144165848,0.4995,2034.4,2033.8,0.001]
[1772144165849,0.4995,2034.3,2033.8,0.001]
[1772144166019,1.72846552,2034.3,2033.9,0.001]
[1772144166415,0.4995,2034.2,2033.9,0.001]
[1772144168442,1.72854478,2034.1,2033.8,0.002]
[1772144168644,0.4995,2034.0,2033.8,0.001]
[1772144170557,0.4995,2033.8,2033.0,0.001]
[1772144170716,0.4995,2033.7,2033.0,0.001]
[1772144171349,0.4995,2033.7,2032.9,0.001]
[1772144172119,0.4995,2033.5,2032.9,0.001]
[1772144172543,0.4995,2033.3,2032.9,0.001]
[1772144172735,0.4995,2033.3,2032.8,1.22918777]
[1772144174556,1.72958882,2033.2,2032.5,1.22997658]
[1772144175229,0.5,2033.0,2032.4,0.45720027]
[1772144176250,0.5,2033.0,2032.2,0.45720027]
[1772144176748,0.5,2033.0,2032.4,0.45720027]
[1772144177356,1.72971,2033.0,2032.4,0.45720027]
[1772144177957,1.72971214,2033.0,2032.4,0.45720027]
[1772144178448,0.5,2032.9,2032.2,0.45720027]
[1772144178661,0.5,2032.9,2032.1,3.91449803]
[1772144181361,0.5,2032.7,2032.1,3.91449803]
[1772144182991,2.419,2033.2,2032.4,0.45720027]
[1772144183160,1.72949183,2033.4,2032.8,0.45720027]
[1772144183471,0.5,2033.3,2032.8,1.68699192]
[1772144185554,1.72944769,2033.5,2032.8,1.68699192]
[1772144186069,0.5,2033.4,2032.8,1.68699192]
[1772144187070,0.5,2033.6,2033.0,0.45720027]
[1772144187251,0.5,2033.6,2032.8,1.68699192]
[1772144187977,0.5,2033.4,2032.8,1.68699192]
[1772144190082,0.5,2033.6,2033.0,0.45720027]
[1772144190380,0.5,2033.6,2033.2,0.45720027]
[1772144190892,0.5,2033.7,2033.2,0.45720027]
[1772144191728,0.5,2033.7,2033.0,0.45720027]
[1772144192583,1.22934697,2033.6,2033.0,1.6868538]
[1772144192777,1.72934697,2033.6,2033.0,1.6868538]
[1772144196201,0.001,2033.5,2033.0,1.6868538]
[1772144197802,0.501,2033.5,2033.0,1.6868538]
[1772144201072,0.001,2033.5,2033.0,1.6868538]
[1772144201273,1.72916624,2033.9,2033.4,0.45720027]
[1772144202598,0.5,2033.9,2033.4,0.45720027]
[1772144203006,0.4992,2033.9,2033.4,0.45720027]
[1772144203187,1.72837395,2033.9,2033.4,1.68663435]
[1772144208385,0.001,2033.7,2033.4,1.68663435]
[1772144218184,0.5,2033.9,2033.4,1.68663435]
[1772144219814,0.5,2033.9,2033.3,1.22947623]
[1772144219815,0.5,2033.8,2033.3,1.22947623]
[1772144221887,0.5,2033.8,2033.6,0.0011]
[1772144222388,0.001,2033.7,2033.6,0.0011]
[1772144224704,0.49236625,2034.0,2033.7,0.09763139]